Workbook

Sheet перечень
H1: Приложение № 10
H2: к постановлению администрации
H3: города Усолье - Сибирское
H4: от 15.12.2025 № 2331-па
A6: Задание Концессионера и основные мероприятия с описанием основных характеристик таких мероприятий
A8: № п/п | B8: Наименование объекта | C8: Адрес (местоположение объекта) | D8: Описание и основные характеристики мероприятий | E8: Обоснование необходимости (цель реализации) | F8: Срок реализации | G8: Объем инвестиций, тыс.рублей (без НДС) | H8: Объем инвестиций, тыс.рублей (с НДС)
A9: 1. | B9: Реконструкция существующих сетей водоснабжения
A10: 1.1. | B10: Сооружение водовод верхней зоны по адресу: Иркутская область, г. Усолье-Сибирское, от «ВОС» до проспекта Химиков | C10: Иркутская область, г. Усолье-Сибирское, от «ВОС» до проспекта Химиков | D10: Реконструкция водовода верхней зоны от «ВОС» (ВК-1) до проспекта Химиков (ВК-28) с заменой трубопровода диаметра 600мм стального – 4123 м., чугунного – 2722 м. на полиэтиленовый диаметром 630мм общей протяженностью – 6935 м. | E10: 1. Уменьшение количества перерывов в подаче питьевой воды населению, 2. Уменьшение процента потерь воды при транспортировке, 3. Снижение процента износа водопроводных сетей. | F10: 2026г-2046 г | G10: =график!E12+график!F12+график!G12+график!H12+график!I12+график!J12+график!K12+график!L12+график!M12+график!N12+график!O12+график!P12+график!Q12+график!R12+график!S12+график!T12+график!U12+график!V12+график!W12+график!X12+график!Y12*график!Y32 -> 574,445.77 | H10: =G10*1.2 -> 689,334.92
H11: =G11*1.2 -> 0.00
H12: 0.00
H13: 0.00
A14: 1.2. | B14: Сооружение водовод нижней зоны по адресу: Иркутская область, г. Усолье-Сибирское, от «ВОС» до гаражного кооператива «Спутник» по ул. Коростова | C14: Иркутская область, г. Усолье-Сибирское, от «ВОС» до гаражного кооператива «Спутник» по ул. Коростова | D14: Реконструкция водовода нижней зоны от «ВОС» (ВК-37) до гаражного кооператива «Спутник» по ул. Коростова (ВК усл. №5) с заменой трубопровода диаметром 500мм стального – 28 м., чугунного – 2139 м. на полиэтиленовый диаметром 500мм общей протяженностью – 2167 м. | E14: 1. Уменьшение количества перерывов в подаче питьевой воды населению, 2. Уменьшение процента потерь воды при транспортировке, 3. Снижение процента износа водопроводных сетей. | F14: 2046г-2052г | G14: =график!Y12*график!Y33+график!Z12+график!AA12+график!AB12+график!AC12+график!AD12+график!AE12 -> 229,444.73 | H14: 275,333.68
G18: =SUM(G10:G17) -> 803,890.50 | H18: =SUM(H10:H17) -> 964,668.60
A19: 2. | B19: Реконструкция существующих сетей водоотведения
A20: 2.1. | B20: Сооружение коллектор канализационный напорный диаметром 600 мм по адресу: Иркутская область, г. Усолье-Сибирское, от КНС-1 по ул. Крупской до КОС-1,3 | C20: Иркутская область, г. Усолье-Сибирское, от КНС-1 ул.Крупской до КОС-1,3 | D20: Реконструкция коллектора напорных стоков Д-600 мм от КНС-1 (камера № 8) по ул. Крупской до КОС (камера №1) с заменой трубопровода диаметром 600мм стального – 17 м., чугунного – 3878м. на полиэтиленовый диаметром 630мм общей протяженностью 3895 м.; замена трубопровода диаметром 150мм стального на полиэтиленовый диаметром 160мм общей протяженностью 138м. | E20: 1. Уменьшение количества аварий и засоров на сетях канализации, 2. Снижение процента износа канализационных сетей. | F20: 2026г-2038г | G20: =график!E14+график!F14+график!G14+график!H14+график!I14+график!J14+график!K14+график!L14+график!M14+график!N14+график!O14+график!P14+график!Q14*график!Q32 -> 272,677.78 | H20: =G20*1.2 -> 327,213.34
A21: 2.2. | B21: Сооружение коллектор канализационный напорный диаметром 900 мм по адресу: Иркутская область, г. Усолье-Сибирское, от КНС-1 по ул.Крупской до КОС-2,3 | C21: Иркутская область, г. Усолье-Сибирское, от КНС-1 ул.Крупской до КОС-2,3 | D21: Реконструкция коллектора напорных стоков Д-900 мм от КНС-1 (камера №1) по ул. Крупской до КОС-2,3 ( камера №2, Г №3) с заменой трубопровода диаметром 900 мм стального – 472,5 м., чугунного – 3717,5 м. на полиэтиленовый – 4190 м. | E21: 1. Уменьшение количества аварий и засоров на сетях канализации, 2. Снижение процента износа канализационных сетей. | F21: 2038г-2052г | G21: =график!Q14*график!Q33+график!R14+график!S14+график!T14+график!U14+график!V14+график!W14+график!X14+график!Y14+график!Z14+график!AA14+график!AB14+график!AC14+график!AD14+график!AE14 -> 446,817.02 | H21: =G21*1.2 -> 536,180.42
G26: =SUM(G20:G25) -> 719,494.80 | H26: =SUM(H20:H25) -> 863,393.76
E27: Итого: | G27: =G18+G26 -> 1,523,385.30 | H27: =H18+H26 -> 1,828,062.36
A30: Мэр города М.В. Торопкин

Sheet индексы
P1: Приложение. Индексы
A4: Индекс дефлятор "Инвестиции в основной капитал"
A6: Наименование показателя | B6: i | C6: i=2026 | D6: i=2027 | E6: i=2028 | F6: i=2029 | G6: i=2030 | H6: i=2031 | I6: i=2032 | J6: i=2033 | K6: i=2034 | L6: i=2035 | M6: i=2036 | N6: i=2037 | O6: i=2038 | P6: i=2039
A7: Индекс роста стоимости СМР (расчетный год к предыдущему) | B7: % | C7: 104.3% | D7: 104.0% | E7: 104.0% | F7: 104.0% | G7: 104.0% | H7: 104.0% | I7: 104.0% | J7: 104.0% | K7: 104.0% | L7: 104.0% | M7: 104.0% | N7: 104.0% | O7: 104.0% | P7: 104.0%
A8: Индекс роста стоимости СМР (расчетный год к предыдущему) | B8: index i | C8: =C7 -> 1.043 | D8: 1.040 | E8: 1.040 | F8: 1.040 | G8: 1.040 | H8: 1.040 | I8: 1.040 | J8: 1.040 | K8: 1.040 | L8: 1.040 | M8: =M7 -> 1.040 | N8: =N7 -> 1.040 | O8: =O7 -> 1.040 | P8: =P7 -> 1.040
A9: Индексы роста стоимости СМР (расчетный год к 2026) | B9: index i /2026 | C9: =C8 -> 1.043 | D9: =C9*D8 -> 1.085 | E9: 1.128 | F9: 1.173 | G9: 1.220 | H9: 1.269 | I9: 1.320 | J9: =I9*J8 -> 1.373 | K9: =J9*K8 -> 1.427 | L9: 1.485 | M9: 1.544 | N9: 1.606 | O9: 1.670 | P9: 1.737
A11: Наименование показателя | B11: i | C11: i=2040 | D11: i=2041 | E11: i=2042 | F11: i=2043 | G11: i=2044 | H11: i=2045 | I11: i=2046 | J11: i=2047 | K11: i=2048 | L11: i=2049 | M11: i=2050 | N11: i=2051 | O11: i=2052 | P11: i=2053
A12: Индекс роста стоимости СМР (расчетный год к предыдущему) | B12: % | C12: 104.0% | D12: 104.0% | E12: 104.0% | F12: 104.0% | G12: 104.0% | H12: 104.0% | I12: 104.0% | J12: 104.0% | K12: 104.0% | L12: 104.0% | M12: 104.0% | N12: 104.0% | O12: 104.0% | P12: 104.0%
A13: Индекс роста стоимости СМР (расчетный год к предыдущему) | B13: index i | C13: =C12 -> 1.040 | D13: 1.040 | E13: 1.040 | F13: 1.040 | G13: 1.040 | H13: 1.040 | I13: 1.040 | J13: 1.040 | K13: 1.040 | L13: 1.040 | M13: 1.040 | N13: 1.040 | O13: 1.040 | P13: 1.040
A14: Индексы роста стоимости СМР (расчетный год к 2026) | B14: index i /2026 | C14: =P9*C13 -> 1.806 | D14: =C14*D13 -> 1.878 | E14: =D14*E13 -> 1.954 | F14: =E14*F13 -> 2.032 | G14: 2.113 | H14: 2.197 | I14: 2.285 | J14: 2.377 | K14: 2.472 | L14: =K14*L13 -> 2.571 | M14: =L14*M13 -> 2.674 | N14: =M14*N13 -> 2.780 | O14: =N14*O13 -> 2.892 | P14: =O14*P13 -> 3.007
A16: Наименование показателя | B16: i | C16: i=2054 | D16: i=2055 | E16: i=2056 | F16: i=2057 | G16: i=2058 | H16: i=2059 | I16: i=2060 | J16: i=2061 | K16: i=2062 | L16: i=2063
A17: Индекс роста стоимости СМР (расчетный год к предыдущему) | B17: % | C17: 104.0% | D17: 104.0% | E17: 104.0% | F17: 104.0% | G17: 104.0% | H17: 104.0% | I17: 104.0% | J17: 104.0% | K17: 104.0% | L17: 104.0%
A18: Индекс роста стоимости СМР (расчетный год к предыдущему) | B18: index i | C18: =C17 -> 1.040 | D18: 1.040 | E18: 1.040 | F18: 1.040 | G18: =G17 -> 1.040 | H18: 1.040 | I18: 1.040 | J18: 1.040 | K18: 1.040 | L18: 1.040
A19: Индексы роста стоимости СМР (расчетный год к 2026) | B19: index i /2026 | C19: =P14*C18 -> 3.128 | D19: =C19*D18 -> 3.253 | E19: =D19*E18 -> 3.383 | F19: 3.518 | G19: 3.659 | H19: 3.805 | I19: 3.957 | J19: 4.116 | K19: 4.280 | L19: 4.452
A22: Согласно Прогноза долгосрочного социально-экономического развития Российской Федерации (разработан Минэкономразвития России) - в области строительства Прогноз индексов дефляторов и инфляции до 2036 г. (в %, за год к предыдущему году) (базовый вариант) в строке "Инвестиции в основной капитал".
A25: Начальник ПЭО | C25: Ю.П. Жилкина

Sheet график
B1: График реализации мероприятий
B3: Наименование показателя | C3: i | E3: i=2026 | F3: i=2027 | G3: i=2028 | H3: i=2029 | I3: i=2030 | J3: i=2031 | K3: i=2032 | L3: i=2033 | M3: i=2034 | N3: i=2035 | O3: i=2036 | P3: i=2037 | Q3: i=2038 | R3: i=2039 | S3: i=2040 | T3: i=2041 | U3: i=2042 | V3: i=2043 | W3: i=2044 | X3: i=2045 | Y3: i=2046 | Z3: i=2047 | AA3: i=2048 | AB3: i=2049 | AC3: i=2050 | AD3: i=2051 | AE3: i=2052 | AF3: i=2053 | AG3: i=2054 | AH3: i=2055 | AI3: i=2056 | AJ3: i=2057 | AK3: i=2058
B4: Индекс роста стоимости СМР (расчетный год к предыдущему) | C4: % | E4: =индексы!C7 -> 104.3% | F4: =индексы!D7 -> 104.0% | G4: =индексы!E7 -> 104.0% | H4: =индексы!F7 -> 104.0% | I4: =индексы!G7 -> 104.0% | J4: =индексы!H7 -> 104.0% | K4: =индексы!I7 -> 104.0% | L4: =индексы!J7 -> 104.0% | M4: =индексы!K7 -> 104.0% | N4: =индексы!L7 -> 104.0% | O4: =индексы!M7 -> 104.0% | P4: =индексы!N7 -> 104.0% | Q4: =индексы!O7 -> 104.0% | R4: =индексы!P7 -> 104.0% | S4: =индексы!C12 -> 104.0% | T4: =индексы!D12 -> 104.0% | U4: =индексы!E12 -> 104.0% | V4: =индексы!F12 -> 104.0% | W4: =индексы!G12 -> 104.0% | X4: =индексы!H12 -> 104.0% | Y4: =индексы!I12 -> 104.0% | Z4: =индексы!J12 -> 104.0% | AA4: =индексы!K12 -> 104.0% | AB4: =индексы!L12 -> 104.0% | AC4: =индексы!M12 -> 104.0% | AD4: =индексы!N12 -> 104.0% | AE4: =индексы!O12 -> 104.0% | AF4: =индексы!P12 -> 104.0% | AG4: =индексы!C17 -> 104.0% | AH4: =индексы!D17 -> 104.0% | AI4: =индексы!E17 -> 104.0% | AJ4: =индексы!F17 -> 104.0% | AK4: =индексы!G17 -> 104.0%
B5: Индекс роста стоимости СМР (расчетный год к предыдущему) | C5: index i | E5: =индексы!C8 -> 1.043 | F5: =индексы!D8 -> 1.040 | G5: =индексы!E8 -> 1.040 | H5: =индексы!F8 -> 1.040 | I5: =индексы!G8 -> 1.040 | J5: =индексы!H8 -> 1.040 | K5: =индексы!I8 -> 1.040 | L5: =индексы!J8 -> 1.040 | M5: =индексы!K8 -> 1.040 | N5: =индексы!L8 -> 1.040 | O5: =индексы!M8 -> 1.040 | P5: =индексы!N8 -> 1.040 | Q5: =индексы!O8 -> 1.040 | R5: =индексы!P8 -> 1.040 | S5: =индексы!C13 -> 1.040 | T5: =индексы!D13 -> 1.040 | U5: =индексы!E13 -> 1.040 | V5: =индексы!F13 -> 1.040 | W5: =индексы!G13 -> 1.040 | X5: =индексы!H13 -> 1.040 | Y5: =индексы!I13 -> 1.040 | Z5: =индексы!J13 -> 1.040 | AA5: =индексы!K13 -> 1.040 | AB5: =индексы!L13 -> 1.040 | AC5: =индексы!M13 -> 1.040 | AD5: =индексы!N13 -> 1.040 | AE5: =индексы!O13 -> 1.040 | AF5: =индексы!P13 -> 1.040 | AG5: =индексы!C18 -> 1.040 | AH5: =индексы!D18 -> 1.040 | AI5: =индексы!E18 -> 1.040 | AJ5: =индексы!F18 -> 1.040 | AK5: =индексы!G18 -> 1.040
B6: Индексы роста стоимости СМР (расчетный год к 2026) | C6: index i /2021 | E6: =E5 -> 1.043 | F6: =E6*F5 -> 1.085 | G6: =F6*G5 -> 1.128 | H6: 1.173 | I6: 1.220 | J6: 1.269 | K6: 1.320 | L6: 1.373 | M6: 1.427 | N6: 1.485 | O6: 1.544 | P6: 1.606 | Q6: 1.670 | R6: 1.737 | S6: =R6*S5 -> 1.806 | T6: =S6*T5 -> 1.878 | U6: =T6*U5 -> 1.954 | V6: =U6*V5 -> 2.032 | W6: =V6*W5 -> 2.113 | X6: =W6*X5 -> 2.197 | Y6: =X6*Y5 -> 2.285 | Z6: =Y6*Z5 -> 2.377 | AA6: =Z6*AA5 -> 2.472 | AB6: =AA6*AB5 -> 2.571 | AC6: =AB6*AC5 -> 2.674 | AD6: 2.780 | AE6: 2.892 | AF6: 3.007 | AG6: 3.128 | AH6: 3.253 | AI6: 3.383 | AJ6: 3.518 | AK6: 3.659
B9: Услуга | C9: Объем инвестиций, тыс.рублей (с учетом НДС) | D9: Объем инвестиций, тыс.рублей (без НДС) | E9: 2026 | F9: =E9+1 -> 2027 | G9: =F9+1 -> 2028 | H9: =G9+1 -> 2029 | I9: =H9+1 -> 2030 | J9: =I9+1 -> 2031 | K9: =J9+1 -> 2032 | L9: =K9+1 -> 2033 | M9: =L9+1 -> 2034 | N9: =M9+1 -> 2035 | O9: =N9+1 -> 2036 | P9: =O9+1 -> 2037 | Q9: =P9+1 -> 2038 | R9: =Q9+1 -> 2039 | S9: =R9+1 -> 2040 | T9: =S9+1 -> 2041 | U9: =T9+1 -> 2042 | V9: =U9+1 -> 2043 | W9: =V9+1 -> 2044 | X9: =W9+1 -> 2045 | Y9: =X9+1 -> 2046 | Z9: =Y9+1 -> 2047 | AA9: =Z9+1 -> 2048 | AB9: =AA9+1 -> 2049 | AC9: =AB9+1 -> 2050 | AD9: =AC9+1 -> 2051 | AE9: =AD9+1 -> 2052 | AF9: =AE9+1 -> 2053 | AG9: =AF9+1 -> 2054 | AH9: =AG9+1 -> 2055 | AI9: =AH9+1 -> 2056 | AJ9: =AI9+1 -> 2057 | AK9: =AJ9+1 -> 2058
B10: водоснабжение (питьевая вода) | C10: =D10*1.2 -> 832,155.84 | D10: =SUM(E10:AE10) -> 693,463.20 | E10: ='[1]питьевая вода'!D12 -> 17,141.3 | F10: ='[1]питьевая вода'!E12 -> 17,781.2 | G10: ='[1]питьевая вода'!F12 -> 18,355.9 | H10: ='[1]питьевая вода'!G12 -> 18,950.3 | I10: ='[1]питьевая вода'!H12 -> 19,565.0 | J10: ='[1]питьевая вода'!I12 -> 20,201.0 | K10: ='[1]питьевая вода'!J12 -> 20,858.9 | L10: ='[1]питьевая вода'!K12 -> 21,539.5 | M10: ='[1]питьевая вода'!L12 -> 22,243.6 | N10: ='[1]питьевая вода'!M12 -> 22,972.1 | O10: ='[1]питьевая вода'!N12 -> 23,725.9 | P10: ='[1]питьевая вода'!O12 -> 24,506.0 | Q10: ='[1]питьевая вода'!P12 -> 25,313.1 | R10: ='[1]питьевая вода'!Q12 -> 26,148.5 | S10: ='[1]питьевая вода'!R12 -> 27,013.0 | T10: ='[1]питьевая вода'!S12 -> 27,907.8 | U10: ='[1]питьевая вода'!T12 -> 28,833.9 | V10: ='[1]питьевая вода'!U12 -> 29,792.6 | W10: ='[1]питьевая вода'!V12 -> 30,785.0 | X10: ='[1]питьевая вода'!W12 -> 31,812.4 | Y10: ='[1]питьевая вода'!X12 -> 32,876.1 | Z10: ='[1]питьевая вода'!Y12 -> 33,977.4 | AA10: ='[1]питьевая вода'!Z12 -> 35,117.8 | AB10: ='[1]питьевая вода'!AA12 -> 36,298.6 | AC10: ='[1]питьевая вода'!AB12 -> 37,521.4 | AD10: ='[1]питьевая вода'!AC12 -> 38,787.8 | AE10: ='[1]питьевая вода'!AD12 -> 3,437.1 | AF10: ='[2]питьевая вода'!AE12 -> 0 | AG10: ='[2]питьевая вода'!AF12 -> 43,304 | AH10: ='[2]питьевая вода'!AG12 -> 44,712 | AI10: ='[2]питьевая вода'!AH12 -> 46,168 | AJ10: ='[2]питьевая вода'!AI12 -> 47,673 | AK10: ='[2]питьевая вода'!AJ12 -> 49,228 | AL10: =SUM(E10:AE10) -> 693,463.2
B11: водоснабжение (техническая вода) | C11: =D11*1.2 -> 132,512.76 | D11: =SUM(E11:AE11) -> 110,427.30 | E11: ='[1]техническая вода'!D12 -> 2,638.8 | F11: ='[1]техническая вода'!E12 -> 2,750.1 | G11: ='[1]техническая вода'!F12 -> 2,843.5 | H11: ='[1]техническая вода'!G12 -> 2,940.4 | I11: ='[1]техническая вода'!H12 -> 3,040.9 | J11: ='[1]техническая вода'!I12 -> 3,145.2 | K11: ='[1]техническая вода'!J12 -> 3,253.4 | L11: ='[1]техническая вода'!K12 -> 3,365.7 | M11: ='[1]техническая вода'!L12 -> 3,482.2 | N11: ='[1]техническая вода'!M12 -> 3,603.2 | O11: ='[1]техническая вода'!N12 -> 3,728.7 | P11: ='[1]техническая вода'!O12 -> 3,858.9 | Q11: ='[1]техническая вода'!P12 -> 3,994.1 | R11: ='[1]техническая вода'!Q12 -> 4,134.4 | S11: ='[1]техническая вода'!R12 -> 4,280.1 | T11: ='[1]техническая вода'!S12 -> 4,431.3 | U11: ='[1]техническая вода'!T12 -> 4,588.3 | V11: ='[1]техническая вода'!U12 -> 4,751.3 | W11: ='[1]техническая вода'!V12 -> 4,920.5 | X11: ='[1]техническая вода'!W12 -> 5,096.3 | Y11: ='[1]техническая вода'!X12 -> 5,278.8 | Z11: ='[1]техническая вода'!Y12 -> 5,468.3 | AA11: ='[1]техническая вода'!Z12 -> 5,665.2 | AB11: ='[1]техническая вода'!AA12 -> 5,869.6 | AC11: ='[1]техническая вода'!AB12 -> 6,082.0 | AD11: ='[1]техническая вода'!AC12 -> 6,302.6 | AE11: ='[1]техническая вода'!AD12 -> 913.5 | AF11: ='[2]техническая вода'!AE12 -> 0 | AG11: ='[2]техническая вода'!AF12 -> 6,976 | AH11: ='[2]техническая вода'!AG12 -> 7,215 | AI11: ='[2]техническая вода'!AH12 -> 7,463 | AJ11: ='[2]техническая вода'!AI12 -> 7,720 | AK11: ='[2]техническая вода'!AJ12 -> 7,986
B12: всего водоснабжение | C12: =SUM(C10:C11) -> 964,668.60 | D12: =SUM(D10:D11) -> 803,890.50 | E12: =E10+E11 -> 19,780.1 | F12: =F10+F11 -> 20,531.3 | G12: 21,199.4 | H12: 21,890.7 | I12: 22,605.9 | J12: 23,346.2 | K12: 24,112.3 | L12: 24,905.2 | M12: 25,725.8 | N12: 26,575.3 | O12: 27,454.6 | P12: 28,364.9 | Q12: 29,307.2 | R12: 30,282.9 | S12: 31,293.1 | T12: 32,339.1 | U12: 33,422.2 | V12: 34,543.9 | W12: 35,705.5 | X12: 36,908.7 | Y12: 38,154.9 | Z12: 39,445.7 | AA12: 40,783.0 | AB12: =AB10+AB11 -> 42,168.2 | AC12: =AC10+AC11 -> 43,603.4 | AD12: 45,090.4 | AE12: 4,350.6 | AF12: 0 | AG12: 50,280 | AH12: 51,928 | AI12: 53,631 | AJ12: 55,392 | AK12: 57,213
B13: всего инвестиции в ценах 2026г. | E13: =E12 -> 19,780.1 | F13: =F12/E6 -> 19,684.9 | G13: =G12/F6 -> 19,543.7 | H13: =H12/G6 -> 19,404.8 | I13: 19,268.0 | J13: 19,133.7 | K13: 19,001.5 | L13: 18,871.5 | M13: 18,743.5 | N13: 18,617.7 | O13: 18,494.0 | P13: 18,372.3 | Q13: 18,252.5 | R13: 18,134.8 | S13: 18,019.0 | T13: 17,905.1 | U13: 17,793.1 | V13: 17,682.9 | W13: 17,574.5 | X13: 17,468.0 | Y13: =Y12/X6 -> 17,363.3 | Z13: =Z12/Y6 -> 17,260.3 | AA13: 17,159.1 | AB13: =AB12/AA6 -> 17,059.5 | AC13: =AC12/AB6 -> 16,961.7 | AD13: 16,865.5 | AE13: 1,564.7 | AF13: 0 | AG13: 16,719 | AH13: 16,603 | AI13: 16,488 | AJ13: 16,374 | AK13: 16,262
B14: водоотведение | C14: =D14*1.2 -> 863,393.76 | D14: =SUM(E14:AE14) -> 719,494.80 | E14: =[1]водоотведение!D12 -> 18,506.2 | F14: =[1]водоотведение!E12 -> 19,210.3 | G14: =[1]водоотведение!F12 -> 19,829.6 | H14: =[1]водоотведение!G12 -> 20,470.2 | I14: =[1]водоотведение!H12 -> 21,133.0 | J14: =[1]водоотведение!I12 -> 21,818.8 | K14: =[1]водоотведение!J12 -> 22,528.5 | L14: =[1]водоотведение!K12 -> 23,262.8 | M14: =[1]водоотведение!L12 -> 24,022.7 | N14: =[1]водоотведение!M12 -> 24,809.2 | O14: =[1]водоотведение!N12 -> 25,623.2 | P14: =[1]водоотведение!O12 -> 26,465.7 | Q14: =[1]водоотведение!P12 -> 27,337.8 | R14: =[1]водоотведение!Q12 -> 28,240.6 | S14: =[1]водоотведение!R12 -> 29,175.1 | T14: =[1]водоотведение!S12 -> 30,142.7 | U14: =[1]водоотведение!T12 -> 31,144.4 | V14: =[1]водоотведение!U12 -> 32,181.7 | W14: =[1]водоотведение!V12 -> 33,255.7 | X14: =[1]водоотведение!W12 -> 34,367.9 | Y14: =[1]водоотведение!X12 -> 35,519.8 | Z14: =[1]водоотведение!Y12 -> 36,712.7 | AA14: =[1]водоотведение!Z12 -> 37,948.3 | AB14: =[1]водоотведение!AA12 -> 39,228.1 | AC14: =[1]водоотведение!AB12 -> 40,553.9 | AD14: =[1]водоотведение!AC12 -> 9,813.0 | AE14: =[1]водоотведение!AD12 -> 6,192.9 | AF14: =[2]водоотведение!AE12 -> 0 | AG14: =[2]водоотведение!AF12 -> 0 | AH14: =[2]водоотведение!AG12 -> 0 | AI14: =[2]водоотведение!AH12 -> 0 | AJ14: =[2]водоотведение!AI12 -> 0 | AK14: =[2]водоотведение!AJ12 -> 0
B15: всего инвестиции в ценах 2026г. | E15: =E14 -> 18,506.2 | F15: =F14/E6 -> 18,418.3 | G15: =G14/F6 -> 18,280.8 | H15: 18,145.6 | I15: 18,012.6 | J15: =J14/I6 -> 17,881.9 | K15: 17,753.4 | L15: 17,627.0 | M15: 17,502.7 | N15: 17,380.5 | O15: 17,260.3 | P15: 17,142.2 | Q15: 17,026.0 | R15: 16,911.8 | S15: 16,799.4 | T15: 16,689.0 | U15: 16,580.4 | V15: 16,473.7 | W15: 16,368.7 | X15: 16,265.5 | Y15: 16,164.1 | Z15: 16,064.4 | AA15: =AA14/Z6 -> 15,966.4 | AB15: =AB14/AA6 -> 15,870.1 | AC15: =AC14/AB6 -> 15,775.4 | AD15: =AD14/AC6 -> 3,670.4 | AE15: =AE14/AD6 -> 2,227.3 | AF15: =AF14/AE6 -> 0 | AG15: =AG14/AF6 -> 0 | AH15: =AH14/AG6 -> 0 | AI15: =AI14/AH6 -> 0 | AJ15: =AJ14/AI6 -> 0 | AK15: =AK14/AJ6 -> 0
B16: Всего объем инвестиций | C16: =C12+C14 -> 1,828,062.36 | D16: =D12+D14 -> 1,523,385.30
B20: Наименование объекта | C20: Сметная стоимость, тыс.рублей (с учетом НДС) | D20: Сметная стоимость, тыс.рублей (без НДС) | E20: 2026 | F20: =E20+1 -> 2027 | G20: 2028 | H20: 2029 | I20: 2030 | J20: 2031 | K20: 2032 | L20: 2033 | M20: 2034 | N20: 2035 | O20: 2036 | P20: 2037 | Q20: 2038 | R20: 2039 | S20: 2040 | T20: 2041 | U20: 2042 | V20: 2043 | W20: 2044 | X20: 2045 | Y20: 2046 | Z20: 2047 | AA20: 2048 | AB20: 2049 | AC20: 2050 | AD20: 2051 | AE20: 2052 | AF20: 2053 | AG20: 2054 | AH20: 2055 | AI20: 2056 | AJ20: 2057 | AK20: 2058
B21: Реконструкция существующих сетей водоснабжения
B22: =перечень!B10 -> Сооружение водовод верхней зоны по адресу: Иркутская область, г. Усолье-Сибирское, от «ВОС» до проспекта Химиков | C22: 459,283.5 | D22: =C22/1.2 -> 382,736.3 | E22: =E13 -> 19,780.1 | F22: =F13 -> 19,684.9 | G22: 19,543.7 | H22: 19,404.8 | I22: 19,268.0 | J22: 19,133.7 | K22: 19,001.5 | L22: 18,871.5 | M22: 18,743.5 | N22: 18,617.7 | O22: 18,494.0 | P22: 18,372.3 | Q22: 18,252.5 | R22: 18,134.8 | S22: 18,019.0 | T22: 17,905.1 | U22: 17,793.1 | V22: =V13 -> 17,682.9 | W22: =W13 -> 17,574.5 | X22: 17,468.0 | Y22: =Y13-6372.6 -> 10,990.7 | AL22: =SUM(E22:AK22) -> 382,736.4 | AM22: =AL22-D22 -> 0.1
B23: =перечень!B14 -> Сооружение водовод нижней зоны по адресу: Иркутская область, г. Усолье-Сибирское, от «ВОС» до гаражного кооператива «Спутник» по ул. Коростова | C23: 111,892.2 | D23: =C23/1.2 -> 93,243.5 | Y23: =Y13-Y22 -> 6,372.6 | Z23: 17,260.3 | AA23: 17,159.1 | AB23: 17,059.5 | AC23: 16,961.7 | AD23: 16,865.5 | AE23: =AE13-AE22 -> 1,564.7 | AL23: =SUM(E23:AK23) -> 93,243.5 | AM23: =AL23-D23 -> 0.0
C24: =SUM(C22:C23) -> 571,175.7 | D24: 475,979.7 | E24: 19,780 | F24: 19,685 | G24: 19,544 | H24: 19,405 | I24: 19,268 | J24: 19,134 | K24: 19,001 | L24: 18,871 | M24: 18,744 | N24: 18,618 | O24: 18,494 | P24: 18,372 | Q24: 18,253 | R24: 18,135 | S24: 18,019 | T24: 17,905 | U24: 17,793 | V24: 17,683 | W24: 17,575 | X24: 17,468 | Y24: 17,363 | Z24: 17,260 | AA24: 17,159 | AB24: 17,060 | AC24: 16,962 | AD24: 16,866 | AE24: 1,565 | AF24: 0 | AG24: 0 | AH24: 0 | AI24: 0 | AJ24: 0
B25: Реконструкция существующих сетей водоотведения
B26: =перечень!B20 -> Сооружение коллектор канализационный напорный диаметром 600 мм по адресу: Иркутская область, г. Усолье-Сибирское, от КНС-1 по ул. Крупской до КОС-1,3 | C26: 260,428.9 | D26: =C26/1.2 -> 217,024.1 | E26: =E15 -> 18,506.2 | F26: =F15 -> 18,418.3 | G26: 18,280.8 | H26: 18,145.6 | I26: 18,012.6 | J26: 17,881.9 | K26: 17,753.4 | L26: 17,627.0 | M26: 17,502.7 | N26: 17,380.5 | O26: 17,260.3 | P26: 17,142.2 | Q26: =Q15-13913.5 -> 3,112.5 | AL26: =SUM(E26:AK26) -> 217,023.9 | AM26: =AL26-D26 -> -0.1
B27: =перечень!B21 -> Сооружение коллектор канализационный напорный диаметром 900 мм по адресу: Иркутская область, г. Усолье-Сибирское, от КНС-1 по ул.Крупской до КОС-2,3 | C27: 258,810.3 | D27: 215,675.2 | Q27: =Q15-Q26 -> 13,913.5 | R27: 16,911.8 | S27: 16,799.4 | T27: 16,689.0 | U27: 16,580.4 | V27: 16,473.7 | W27: 16,368.7 | X27: 16,265.5 | Y27: =Y15-Y26 -> 16,164.1 | Z27: =Z15-Z26 -> 16,064.4 | AA27: =AA15-AA26 -> 15,966.4 | AB27: =AB15-AB26-16.3 -> 15,853.8 | AC27: =AC15-AC26-16.3 -> 15,759.1 | AD27: 3,654.1 | AE27: 2,211.0 | AL27: =SUM(E27:AK27) -> 215,675.2 | AM27: =AL27-D27 -> 0.0
C28: =SUM(C26:C27) -> 519,239.2 | D28: 432,699.3 | E28: 18,506.2 | F28: 18,418.3 | G28: 18,280.8 | H28: 18,145.6 | I28: 18,012.6 | J28: 17,881.9 | K28: 17,753.4 | L28: 17,627.0 | M28: 17,502.7 | N28: 17,380.5 | O28: 17,260.3 | P28: 17,142.2 | Q28: 17,026.0 | R28: 16,911.8 | S28: 16,799.4 | T28: 16,689.0 | U28: 16,580.4 | V28: 16,473.7 | W28: 16,368.7 | X28: 16,265.5 | Y28: 16,164.1 | Z28: 16,064.4 | AA28: 15,966.4 | AB28: 15,853.8 | AC28: 15,759.1 | AD28: 3,654.1 | AE28: 2,211.0 | AF28: 0 | AG28: 0 | AH28: 0 | AI28: 0 | AJ28: 0
C29: =C24+C28 -> 1,090,414.8 | D29: 908,679.0 | E29: 38,286.3 | F29: 38,103.2 | G29: 37,824.5 | H29: 37,550.4 | I29: 37,280.7 | J29: 37,015.6 | K29: 36,754.9 | L29: 36,498.4 | M29: 36,246.2 | N29: 35,998.2 | O29: 35,754.3 | P29: 35,514.5 | Q29: 35,278.5 | R29: 35,046.6 | S29: 34,818.4 | T29: 34,594.1 | U29: 34,373.5 | V29: 34,156.6 | W29: 33,943.3 | X29: 33,733.6 | Y29: 33,527.5 | Z29: 33,324.7 | AA29: 33,125.5 | AB29: 32,913.3 | AC29: 32,720.8 | AD29: 20,519.6 | AE29: 3,775.7 | AF29: 0 | AG29: 0 | AH29: 0 | AI29: 0 | AJ29: 0
Q32: =Q26/Q28 -> 0.1828084427 | Y32: =Y22/Y24 -> 0.6329847631
Q33: =Q27/Q28 -> 0.8171915573 | Y33: =Y23/Y24 -> 0.3670152369
